[Event "Titled Tuesday Blitz November 22 Late 2022"]
[White "Aggelis, Nikolaos"]
[Black "Oparin, Grigoriy"]
[WhiteFideId "4213220"]
[BlackFideId "24125890"]
[WhiteElo "2189"]
[BlackElo "2639"]
[Result "0-1"]
[Round "08"]
[TimeControl "180+1"]
[Date "2022.11.22"]
[WhiteClock "0:00:12"]
[BlackClock "0:01:17"]

1. Nf3 {[%clk 0:02:56]}  c5 {[%clk 0:03:00]} 2. c4 {[%clk 0:02:52]}  Nc6 {[%clk 0:03:00]} 3. g3 {[%clk 0:02:52]}  e5 {[%clk 0:02:59]} 4. Bg2 {[%clk 0:02:50]}  g6 {[%clk 0:02:59]} 5. d3 {[%clk 0:02:47]}  Bg7 {[%clk 0:03:00]} 6. O-O {[%clk 0:02:48]}  Nge7 {[%clk 0:03:00]} 7. Nc3 {[%clk 0:02:48]}  O-O {[%clk 0:03:01]} 8. Ne1 {[%clk 0:02:49]}  h6 {[%clk 0:02:59]} 9. Nc2 {[%clk 0:02:49]}  d6 {[%clk 0:02:59]} 10. Ne3 {[%clk 0:02:50]}  Be6 {[%clk 0:02:59]} 11. Ned5 {[%clk 0:02:50]}  Kh7 {[%clk 0:02:57]} 12. Rb1 {[%clk 0:02:48]}  Qd7 {[%clk 0:02:50]} 13. Re1 {[%clk 0:02:45]}  Rae8 {[%clk 0:02:49]} 14. a3 {[%clk 0:02:45]}  f5 {[%clk 0:02:48]} 15. b4 {[%clk 0:02:43]}  b6 {[%clk 0:02:48]} 16. e3 {[%clk 0:02:28]}  Ng8 {[%clk 0:02:28]} 17. bxc5 {[%clk 0:02:19]}  dxc5 {[%clk 0:02:28]} 18. Bb2 {[%clk 0:02:16]}  Nf6 {[%clk 0:02:24]} 19. Nxf6+ {[%clk 0:02:12]}  Bxf6 {[%clk 0:02:25]} 20. Nd5 {[%clk 0:02:12]}  Bg7 {[%clk 0:02:25]} 21. h4 {[%clk 0:02:07]}  Ne7 {[%clk 0:02:23]} 22. Qb3 {[%clk 0:01:59]}  Rd8 {[%clk 0:02:21]} 23. e4 {[%clk 0:01:43]}  f4 {[%clk 0:02:21]} 24. gxf4 {[%clk 0:01:39]}  Rxf4 {[%clk 0:02:17]} 25. Nxf4 {[%clk 0:01:34]}  exf4 {[%clk 0:02:18]} 26. Bxg7 {[%clk 0:01:33]}  Kxg7 {[%clk 0:02:19]} 27. Qb2+ {[%clk 0:01:30]}  Kf7 {[%clk 0:02:12]} 28. Qe5 {[%clk 0:01:30]}  Qd6 {[%clk 0:02:11]} 29. Qxd6 {[%clk 0:01:25]}  Rxd6 {[%clk 0:02:12]} 30. Bf1 {[%clk 0:01:16]}  Nc6 {[%clk 0:02:11]} 31. f3 {[%clk 0:01:06]}  Kf6 {[%clk 0:02:10]} 32. Kf2 {[%clk 0:01:06]}  Ke5 {[%clk 0:02:08]} 33. Be2 {[%clk 0:00:58]}  Kd4 {[%clk 0:01:58]} 34. Rg1 {[%clk 0:00:51]}  Bd7 {[%clk 0:01:58]} 35. Rbc1 {[%clk 0:00:46]}  Ne5 {[%clk 0:01:55]} 36. Rgd1 {[%clk 0:00:40]}  Ba4 {[%clk 0:01:53]} 37. Rd2 {[%clk 0:00:40]}  Bb3 {[%clk 0:01:49]} 38. Bf1 {[%clk 0:00:35]}  Ba4 {[%clk 0:01:47]} 39. Be2 {[%clk 0:00:34]}  Bd7 {[%clk 0:01:46]} 40. Rdd1 {[%clk 0:00:32]}  Rf6 {[%clk 0:01:44]} 41. Bf1 {[%clk 0:00:30]}  Rf8 {[%clk 0:01:40]} 42. Be2 {[%clk 0:00:30]}  Be6 {[%clk 0:01:40]} 43. Rg1 {[%clk 0:00:27]}  Rd8 {[%clk 0:01:39]} 44. Rgd1 {[%clk 0:00:27]}  Rb8 {[%clk 0:01:38]} 45. Rd2 {[%clk 0:00:26]}  Bd7 {[%clk 0:01:37]} 46. Rdd1 {[%clk 0:00:25]}  Ba4 {[%clk 0:01:33]} 47. Rd2 {[%clk 0:00:25]}  Rg8 {[%clk 0:01:26]} 48. Bf1 {[%clk 0:00:21]}  Bc6 {[%clk 0:01:24]} 49. Be2 {[%clk 0:00:20]}  Bd7 {[%clk 0:01:23]} 50. Bf1 {[%clk 0:00:20]}  g5 {[%clk 0:01:23]} 51. hxg5 {[%clk 0:00:20]}  hxg5 {[%clk 0:01:24]} 52. Be2 {[%clk 0:00:20]}  Rh8 {[%clk 0:01:24]} 53. Rg1 {[%clk 0:00:20]}  Rh2+ {[%clk 0:01:19]} 54. Kf1 {[%clk 0:00:17]}  Ke3 {[%clk 0:01:19]} 55. Ra2 {[%clk 0:00:16]}  Nxf3 {[%clk 0:01:17]} 56. Bxf3 {[%clk 0:00:14]}  Rxa2 {[%clk 0:01:16]} 57. Bg4 {[%clk 0:00:12]}  Ra1+ {[%clk 0:01:15]} 58. Kg2 {[%clk 0:00:12]}  Rxg1+ {[%clk 0:01:16]} 59. Kxg1 {[%clk 0:00:12]}  Bxg4 {[%clk 0:01:17]} 0-1


[Site "https://www.chess.com"]

[Event "Titled Tuesday Blitz November 22 Late 2022"]
[White "Aguilar, Juan"]
[Black "Novikova, Galina"]
[WhiteFideId "3800091"]
[BlackFideId "4157095"]
[WhiteElo "2488"]
[BlackElo "1973"]
[Result "1-0"]
[Round "08"]
[TimeControl "180+1"]
[Date "2022.11.23"]
[WhiteClock "0:00:26"]
[BlackClock "0:00:03"]

1. d4 {[%clk 0:03:00]}  e6 {[%clk 0:03:00]} 2. c4 {[%clk 0:03:00]}  d5 {[%clk 0:03:00]} 3. Nf3 {[%clk 0:02:59]}  c6 {[%clk 0:03:01]} 4. g3 {[%clk 0:02:59]}  Nf6 {[%clk 0:02:59]} 5. Bg2 {[%clk 0:02:59]}  Be7 {[%clk 0:03:00]} 6. O-O {[%clk 0:02:58]}  O-O {[%clk 0:03:01]} 7. Qc2 {[%clk 0:02:56]}  b6 {[%clk 0:03:01]} 8. Nbd2 {[%clk 0:02:56]}  Nbd7 {[%clk 0:03:00]} 9. e4 {[%clk 0:02:55]}  dxe4 {[%clk 0:03:00]} 10. Nxe4 {[%clk 0:02:55]}  Nxe4 {[%clk 0:02:58]} 11. Qxe4 {[%clk 0:02:56]}  Bb7 {[%clk 0:02:59]} 12. Rd1 {[%clk 0:02:52]}  Nf6 {[%clk 0:02:59]} 13. Qc2 {[%clk 0:02:50]}  Qc8 {[%clk 0:02:58]} 14. c5 {[%clk 0:02:48]}  Nd5 {[%clk 0:02:52]} 15. Bd2 {[%clk 0:02:47]}  Bf6 {[%clk 0:02:49]} 16. b4 {[%clk 0:02:43]}  a5 {[%clk 0:02:48]} 17. a3 {[%clk 0:02:41]}  h6 {[%clk 0:02:22]} 18. Ne5 {[%clk 0:02:31]}  Bxe5 {[%clk 0:02:13]} 19. dxe5 {[%clk 0:02:30]}  Qc7 {[%clk 0:02:11]} 20. Re1 {[%clk 0:02:26]}  axb4 {[%clk 0:02:09]} 21. Bxb4 {[%clk 0:02:15]}  Nxb4 {[%clk 0:02:07]} 22. axb4 {[%clk 0:02:15]}  Rxa1 {[%clk 0:02:08]} 23. Rxa1 {[%clk 0:02:15]}  Qxe5 {[%clk 0:02:07]} 24. Ra7 {[%clk 0:02:15]}  Ba8 {[%clk 0:01:44]} 25. cxb6 {[%clk 0:02:11]}  Qe1+ {[%clk 0:01:44]} 26. Bf1 {[%clk 0:02:10]}  Qxb4 {[%clk 0:01:45]} 27. Qa2 {[%clk 0:01:45]}  Qxb6 {[%clk 0:01:18]} 28. Rxa8 {[%clk 0:01:45]}  Rxa8 {[%clk 0:01:17]} 29. Qxa8+ {[%clk 0:01:45]}  Kh7 {[%clk 0:01:18]} 30. Bd3+ {[%clk 0:01:44]}  g6 {[%clk 0:01:18]} 31. Qf8 {[%clk 0:01:29]}  Qc7 {[%clk 0:01:11]} 32. h4 {[%clk 0:01:27]}  h5 {[%clk 0:01:09]} 33. Qc5 {[%clk 0:01:20]}  Kg7 {[%clk 0:00:46]} 34. Be4 {[%clk 0:01:19]}  Qd8 {[%clk 0:00:46]} 35. Qxc6 {[%clk 0:01:16]}  Qd1+ {[%clk 0:00:46]} 36. Kg2 {[%clk 0:01:17]}  Qd4 {[%clk 0:00:44]} 37. Bf3 {[%clk 0:01:15]}  Qf6 {[%clk 0:00:43]} 38. Qe4 {[%clk 0:01:11]}  Qc3 {[%clk 0:00:40]} 39. g4 {[%clk 0:01:05]}  hxg4 {[%clk 0:00:37]} 40. Qxg4 {[%clk 0:01:05]}  Kf8 {[%clk 0:00:29]} 41. Qg5 {[%clk 0:01:01]}  Qd4 {[%clk 0:00:23]} 42. h5 {[%clk 0:00:59]}  gxh5 {[%clk 0:00:24]} 43. Bxh5 {[%clk 0:00:58]}  Qe4+ {[%clk 0:00:21]} 44. Bf3 {[%clk 0:00:55]}  Qh7 {[%clk 0:00:19]} 45. Kg3 {[%clk 0:00:52]}  Qd3 {[%clk 0:00:15]} 46. Qf6 {[%clk 0:00:50]}  Qd6+ {[%clk 0:00:12]} 47. Kg4 {[%clk 0:00:46]}  Qc5 {[%clk 0:00:12]} 48. Qd8+ {[%clk 0:00:44]}  Kg7 {[%clk 0:00:13]} 49. Qg5+ {[%clk 0:00:45]}  Qxg5+ {[%clk 0:00:12]} 50. Kxg5 {[%clk 0:00:46]}  f6+ {[%clk 0:00:13]} 51. Kf4 {[%clk 0:00:46]}  Kg6 {[%clk 0:00:14]} 52. Bc6 {[%clk 0:00:40]}  Kf7 {[%clk 0:00:11]} 53. Kg4 {[%clk 0:00:40]}  Ke7 {[%clk 0:00:12]} 54. Kh5 {[%clk 0:00:39]}  Kd6 {[%clk 0:00:12]} 55. Bg2 {[%clk 0:00:38]}  Ke5 {[%clk 0:00:12]} 56. Kg6 {[%clk 0:00:38]}  f5 {[%clk 0:00:11]} 57. Kg5 {[%clk 0:00:36]}  Kd4 {[%clk 0:00:07]} 58. Kf6 {[%clk 0:00:35]}  Kd3 {[%clk 0:00:04]} 59. Kxe6 {[%clk 0:00:31]}  f4 {[%clk 0:00:04]} 60. Kf5 {[%clk 0:00:27]}  Ke2 {[%clk 0:00:04]} 61. f3 {[%clk 0:00:26]}  Kf2 {[%clk 0:00:02]} 62. Kxf4 {[%clk 0:00:26]}  Kxg2 {[%clk 0:00:03]} 63. Kg4 {[%clk 0:00:26]} 1-0


[Site "https://www.chess.com"]

[Event "Titled Tuesday Blitz November 22 Late 2022"]
[White "Alexikov, Alexander"]
[Black "Shapiro, Daniel"]
[WhiteFideId "14103958"]
[BlackFideId "2001780"]
[WhiteElo "2222"]
[BlackElo "2304"]
[Result "0-1"]
[Round "08"]
[TimeControl "180+1"]
[Date "2022.11.23"]
[WhiteClock "0:00:04"]
[BlackClock "0:00:05"]

1. e4 {[%clk 0:03:00]}  e5 {[%clk 0:03:00]} 2. Nf3 {[%clk 0:03:00]}  Nc6 {[%clk 0:03:00]} 3. c3 {[%clk 0:03:00]}  Nf6 {[%clk 0:02:58]} 4. d4 {[%clk 0:02:59]}  d6 {[%clk 0:02:58]} 5. Bb5 {[%clk 0:02:58]}  Bd7 {[%clk 0:02:57]} 6. O-O {[%clk 0:02:57]}  Be7 {[%clk 0:02:55]} 7. Re1 {[%clk 0:02:57]}  O-O {[%clk 0:02:52]} 8. Ba4 {[%clk 0:02:57]}  Re8 {[%clk 0:02:48]} 9. h3 {[%clk 0:02:56]}  Bf8 {[%clk 0:02:48]} 10. Nbd2 {[%clk 0:02:53]}  g6 {[%clk 0:02:47]} 11. Bc2 {[%clk 0:02:48]}  Bg7 {[%clk 0:02:46]} 12. a3 {[%clk 0:02:46]}  Nh5 {[%clk 0:02:38]} 13. Nf1 {[%clk 0:02:43]}  b5 {[%clk 0:02:21]} 14. a4 {[%clk 0:02:39]}  b4 {[%clk 0:02:19]} 15. d5 {[%clk 0:02:39]}  Ne7 {[%clk 0:02:08]} 16. cxb4 {[%clk 0:02:38]}  Rf8 {[%clk 0:01:56]} 17. b5 {[%clk 0:02:21]}  h6 {[%clk 0:01:51]} 18. Bd2 {[%clk 0:02:11]}  Qe8 {[%clk 0:01:50]} 19. Qc1 {[%clk 0:02:08]}  Kh7 {[%clk 0:01:49]} 20. Bd3 {[%clk 0:02:04]}  Rc8 {[%clk 0:01:43]} 21. Be3 {[%clk 0:02:03]}  f5 {[%clk 0:01:35]} 22. exf5 {[%clk 0:01:46]}  gxf5 {[%clk 0:01:29]} 23. Bxa7 {[%clk 0:01:43]}  e4 {[%clk 0:01:18]} 24. Nd4 {[%clk 0:01:25]}  exd3 {[%clk 0:01:06]} 25. Qe3 {[%clk 0:01:21]}  Be5 {[%clk 0:00:56]} 26. Qxd3 {[%clk 0:01:15]}  Ra8 {[%clk 0:00:48]} 27. b6 {[%clk 0:01:08]}  Nxd5 {[%clk 0:00:44]} 28. Nf3 {[%clk 0:01:05]}  Nhf4 {[%clk 0:00:36]} 29. Qd2 {[%clk 0:00:58]}  cxb6 {[%clk 0:00:32]} 30. Nxe5 {[%clk 0:00:52]}  dxe5 {[%clk 0:00:32]} 31. Ne3 {[%clk 0:00:49]}  Qg6 {[%clk 0:00:19]} 32. g3 {[%clk 0:00:40]}  Bc6 {[%clk 0:00:20]} 33. Rac1 {[%clk 0:00:37]}  Nxh3+ {[%clk 0:00:17]} 34. Kg2 {[%clk 0:00:36]}  Ng5 {[%clk 0:00:18]} 35. Rxc6 {[%clk 0:00:33]}  Qxc6 {[%clk 0:00:16]} 36. Nxd5 {[%clk 0:00:33]}  Rxa7 {[%clk 0:00:15]} 37. Rxe5 {[%clk 0:00:32]}  Rd7 {[%clk 0:00:12]} 38. Qc3 {[%clk 0:00:23]}  Qxc3 {[%clk 0:00:08]} 39. bxc3 {[%clk 0:00:21]}  Ne4 {[%clk 0:00:07]} 40. c4 {[%clk 0:00:20]}  Rd6 {[%clk 0:00:07]} 41. f3 {[%clk 0:00:18]}  Nc5 {[%clk 0:00:06]} 42. Ne3 {[%clk 0:00:17]}  Nxa4 {[%clk 0:00:06]} 43. Nxf5 {[%clk 0:00:17]}  Rdf6 {[%clk 0:00:06]} 44. g4 {[%clk 0:00:16]}  h5 {[%clk 0:00:07]} 45. Re7+ {[%clk 0:00:15]}  Kh8 {[%clk 0:00:06]} 46. Kg3 {[%clk 0:00:13]}  hxg4 {[%clk 0:00:07]} 47. fxg4 {[%clk 0:00:12]}  Rxf5 {[%clk 0:00:07]} 48. gxf5 {[%clk 0:00:11]}  Rxf5 {[%clk 0:00:08]} 49. Ra7 {[%clk 0:00:09]}  Ra5 {[%clk 0:00:05]} 50. Rb7 {[%clk 0:00:08]}  Rc5 {[%clk 0:00:04]} 51. Ra7 {[%clk 0:00:07]}  Rxc4 {[%clk 0:00:05]} 52. Kf3 {[%clk 0:00:04]}  b5 {[%clk 0:00:05]} 53. Ke3 {[%clk 0:00:04]}  Kg8 {[%clk 0:00:05]} 54. Kd3 {[%clk 0:00:04]}  Kf8 {[%clk 0:00:05]} 55. Rb7 {[%clk 0:00:04]}  Rc5 {[%clk 0:00:05]} 56. Kd4 {[%clk 0:00:04]}  Rh5 {[%clk 0:00:05]} 0-1


[Site "https://www.chess.com"]

[Event "Titled Tuesday Blitz November 22 Late 2022"]
[White "Andreikin, Dmitry"]
[Black "Martinez Alcantara, Jose Eduardo"]
[WhiteFideId "4158814"]
[BlackFideId "3805662"]
[WhiteElo "2736"]
[BlackElo "2705"]
[Result "1-0"]
[Round "08"]
[TimeControl "180+1"]
[Date "2022.11.22"]
[WhiteClock "0:00:05"]
[BlackClock "0:00:10"]

1. Nf3 {[%clk 0:03:00]}  d5 {[%clk 0:02:59]} 2. e3 {[%clk 0:03:00]}  Nf6 {[%clk 0:02:59]} 3. c4 {[%clk 0:03:00]}  c6 {[%clk 0:02:59]} 4. Nc3 {[%clk 0:03:00]}  a6 {[%clk 0:02:58]} 5. d4 {[%clk 0:02:59]}  g6 {[%clk 0:02:48]} 6. h3 {[%clk 0:02:55]}  Bg7 {[%clk 0:02:48]} 7. Be2 {[%clk 0:02:55]}  O-O {[%clk 0:02:48]} 8. O-O {[%clk 0:02:55]}  Nbd7 {[%clk 0:02:34]} 9. cxd5 {[%clk 0:02:41]}  cxd5 {[%clk 0:02:35]} 10. Ne5 {[%clk 0:02:39]}  e6 {[%clk 0:02:17]} 11. f4 {[%clk 0:02:34]}  b5 {[%clk 0:02:03]} 12. Bd2 {[%clk 0:02:22]}  Nb6 {[%clk 0:01:57]} 13. Rc1 {[%clk 0:02:14]}  Nc4 {[%clk 0:01:53]} 14. b3 {[%clk 0:02:06]}  Nd6 {[%clk 0:01:51]} 15. Bd3 {[%clk 0:01:51]}  Bb7 {[%clk 0:01:49]} 16. Ne2 {[%clk 0:01:50]}  Re8 {[%clk 0:01:45]} 17. Bb4 {[%clk 0:01:46]}  Nfe4 {[%clk 0:01:41]} 18. Qe1 {[%clk 0:01:45]}  Nf5 {[%clk 0:01:39]} 19. Ba5 {[%clk 0:01:39]}  Qd6 {[%clk 0:01:30]} 20. Bb4 {[%clk 0:01:20]}  Qd8 {[%clk 0:01:30]} 21. Bxe4 {[%clk 0:01:11]}  dxe4 {[%clk 0:01:29]} 22. Ng3 {[%clk 0:01:11]}  a5 {[%clk 0:01:14]} 23. Bc5 {[%clk 0:01:08]}  f6 {[%clk 0:01:02]} 24. Ng4 {[%clk 0:01:06]}  b4 {[%clk 0:01:02]} 25. Nxf5 {[%clk 0:00:53]}  exf5 {[%clk 0:01:03]} 26. Nh2 {[%clk 0:00:53]}  Bd5 {[%clk 0:01:02]} 27. Rf2 {[%clk 0:00:51]}  h5 {[%clk 0:00:59]} 28. Nf1 {[%clk 0:00:49]}  Qd7 {[%clk 0:00:55]} 29. Nd2 {[%clk 0:00:49]}  Re6 {[%clk 0:00:52]} 30. Nc4 {[%clk 0:00:49]}  Qd8 {[%clk 0:00:51]} 31. Rfc2 {[%clk 0:00:47]}  Kh7 {[%clk 0:00:50]} 32. Qh4 {[%clk 0:00:43]}  Kg8 {[%clk 0:00:43]} 33. Nb2 {[%clk 0:00:41]}  Rc6 {[%clk 0:00:37]} 34. Na4 {[%clk 0:00:40]}  Rac8 {[%clk 0:00:37]} 35. Kh1 {[%clk 0:00:31]}  Kf7 {[%clk 0:00:33]} 36. Rg1 {[%clk 0:00:31]}  Be6 {[%clk 0:00:29]} 37. Qe1 {[%clk 0:00:27]}  g5 {[%clk 0:00:28]} 38. Qe2 {[%clk 0:00:26]}  Kg6 {[%clk 0:00:26]} 39. g3 {[%clk 0:00:24]}  Bh6 {[%clk 0:00:26]} 40. h4 {[%clk 0:00:22]}  Bg7 {[%clk 0:00:20]} 41. Qb5 {[%clk 0:00:21]}  Bd7 {[%clk 0:00:16]} 42. Qe2 {[%clk 0:00:15]}  Be6 {[%clk 0:00:16]} 43. Rgc1 {[%clk 0:00:15]}  Kh6 {[%clk 0:00:16]} 44. Bb6 {[%clk 0:00:10]}  Qe8 {[%clk 0:00:14]} 45. Rc5 {[%clk 0:00:07]}  Bf8 {[%clk 0:00:14]} 46. R5c2 {[%clk 0:00:05]}  gxh4 {[%clk 0:00:13]} 47. gxh4 {[%clk 0:00:05]}  Bd7 {[%clk 0:00:13]} 48. Bc5 {[%clk 0:00:04]}  Bg7 {[%clk 0:00:14]} 49. Rg1 {[%clk 0:00:03]}  Kh7 {[%clk 0:00:14]} 50. Qc4 {[%clk 0:00:03]}  Be6 {[%clk 0:00:12]} 51. Qb5 {[%clk 0:00:04]}  Qf7 {[%clk 0:00:11]} 52. Rcg2 {[%clk 0:00:04]}  Bh6 {[%clk 0:00:11]} 53. Nb6 {[%clk 0:00:04]}  R8c7 {[%clk 0:00:11]} 54. Qxa5 {[%clk 0:00:04]}  Rb7 {[%clk 0:00:10]} 55. Qxb4 {[%clk 0:00:04]}  Qc7 {[%clk 0:00:10]} 56. Qa4 {[%clk 0:00:04]}  Rbxb6 {[%clk 0:00:10]} 57. Bxb6 {[%clk 0:00:04]}  Qxb6 {[%clk 0:00:10]} 58. Qa8 {[%clk 0:00:04]}  Rc8 {[%clk 0:00:08]} 59. Qa3 {[%clk 0:00:05]}  Qb7 {[%clk 0:00:07]} 60. Qd6 {[%clk 0:00:05]}  Qf7 {[%clk 0:00:07]} 61. Rg6 {[%clk 0:00:05]}  Bf8 {[%clk 0:00:06]} 62. Qa6 {[%clk 0:00:03]}  Re8 {[%clk 0:00:05]} 63. d5 {[%clk 0:00:03]}  Bxd5 {[%clk 0:00:04]} 64. Rxf6 {[%clk 0:00:03]}  Qe7 {[%clk 0:00:04]} 65. Rg5 {[%clk 0:00:02]}  Bf7 {[%clk 0:00:04]} 66. Rfxf5 {[%clk 0:00:02]}  Bh6 {[%clk 0:00:04]} 67. Rxh5 {[%clk 0:00:01]}  Bxh5 {[%clk 0:00:05]} 68. Rxh5 {[%clk 0:00:02]}  Qg7 {[%clk 0:00:05]} 69. Qc6 {[%clk 0:00:02]}  Rg8 {[%clk 0:00:06]} 70. Qxe4+ {[%clk 0:00:02]}  Kh8 {[%clk 0:00:07]} 71. Qe5 {[%clk 0:00:03]}  Kh7 {[%clk 0:00:07]} 72. Qe4+ {[%clk 0:00:03]}  Kh8 {[%clk 0:00:06]} 73. Qe5 {[%clk 0:00:03]}  Kh7 {[%clk 0:00:06]} 74. Qxg7+ {[%clk 0:00:04]}  Kxg7 {[%clk 0:00:07]} 75. Rd5 {[%clk 0:00:03]}  Re8 {[%clk 0:00:07]} 76. Rd3 {[%clk 0:00:03]}  Kg6 {[%clk 0:00:08]} 77. Kg2 {[%clk 0:00:03]}  Rc8 {[%clk 0:00:06]} 78. Kf3 {[%clk 0:00:04]}  Rc2 {[%clk 0:00:06]} 79. a4 {[%clk 0:00:04]}  Bf8 {[%clk 0:00:07]} 80. Rd5 {[%clk 0:00:04]}  Ra2 {[%clk 0:00:08]} 81. Rb5 {[%clk 0:00:04]}  Be7 {[%clk 0:00:07]} 82. h5+ {[%clk 0:00:05]}  Kh6 {[%clk 0:00:08]} 83. Ke4 {[%clk 0:00:05]}  Bh4 {[%clk 0:00:07]} 84. Kf5 {[%clk 0:00:03]}  Re2 {[%clk 0:00:07]} 85. e4 {[%clk 0:00:03]}  Rf2 {[%clk 0:00:07]} 86. Kg4 {[%clk 0:00:03]}  Bd8 {[%clk 0:00:08]} 87. Rd5 {[%clk 0:00:03]}  Bc7 {[%clk 0:00:08]} 88. e5 {[%clk 0:00:03]}  Rg2+ {[%clk 0:00:08]} 89. Kf5 {[%clk 0:00:03]}  Rc2 {[%clk 0:00:09]} 90. Rd7 {[%clk 0:00:03]}  Ba5 {[%clk 0:00:07]} 91. Rd6+ {[%clk 0:00:03]}  Kg7 {[%clk 0:00:07]} 92. h6+ {[%clk 0:00:02]}  Kh7 {[%clk 0:00:07]} 93. Ra6 {[%clk 0:00:03]}  Bb4 {[%clk 0:00:08]} 94. Rb6 {[%clk 0:00:02]}  Ba3 {[%clk 0:00:08]} 95. a5 {[%clk 0:00:03]}  Ra2 {[%clk 0:00:08]} 96. a6 {[%clk 0:00:03]}  Bc5 {[%clk 0:00:08]} 97. Rc6 {[%clk 0:00:03]}  Be3 {[%clk 0:00:09]} 98. Ke4 {[%clk 0:00:03]}  Bd2 {[%clk 0:00:09]} 99. e6 {[%clk 0:00:03]}  Bb4 {[%clk 0:00:08]} 100. Rb6 {[%clk 0:00:03]}  Bf8 {[%clk 0:00:08]} 101. Kf3 {[%clk 0:00:01]}  Ra3 {[%clk 0:00:07]} 102. Rb7+ {[%clk 0:00:02]}  Kxh6 {[%clk 0:00:07]} 103. e7 {[%clk 0:00:02]}  Bxe7 {[%clk 0:00:07]} 104. Rxe7 {[%clk 0:00:03]}  Rxa6 {[%clk 0:00:07]} 105. Kg4 {[%clk 0:00:02]}  Rb6 {[%clk 0:00:07]} 106. Re3 {[%clk 0:00:02]}  Kg6 {[%clk 0:00:07]} 107. Kf3 {[%clk 0:00:02]}  Kf6 {[%clk 0:00:08]} 108. Rd3 {[%clk 0:00:02]}  Rb4 {[%clk 0:00:09]} 109. Ke3 {[%clk 0:00:02]}  Kf5 {[%clk 0:00:10]} 110. Rd5+ {[%clk 0:00:02]}  Ke6 {[%clk 0:00:10]} 111. Rd3 {[%clk 0:00:02]}  Kf5 {[%clk 0:00:11]} 112. Kd2 {[%clk 0:00:02]}  Kxf4 {[%clk 0:00:11]} 113. Kc3 {[%clk 0:00:02]}  Rb8 {[%clk 0:00:12]} 114. b4 {[%clk 0:00:03]}  Ke5 {[%clk 0:00:13]} 115. Kc4 {[%clk 0:00:02]}  Rc8+ {[%clk 0:00:10]} 116. Kb5 {[%clk 0:00:03]}  Rb8+ {[%clk 0:00:10]} 117. Ka4 {[%clk 0:00:03]}  Ra8+ {[%clk 0:00:11]} 118. Kb3 {[%clk 0:00:04]}  Rb8 {[%clk 0:00:12]} 119. Rd2 {[%clk 0:00:04]}  Ke6 {[%clk 0:00:12]} 120. Rd4 {[%clk 0:00:05]}  Ke7 {[%clk 0:00:11]} 121. Ka4 {[%clk 0:00:05]}  Ra8+ {[%clk 0:00:11]} 122. Kb5 {[%clk 0:00:05]}  Rb8+ {[%clk 0:00:12]} 123. Kc6 {[%clk 0:00:05]}  Rc8+ {[%clk 0:00:12]} 124. Kb7 {[%clk 0:00:06]}  Rf8 {[%clk 0:00:09]} 125. b5 {[%clk 0:00:06]}  Ke6 {[%clk 0:00:10]} 126. b6 {[%clk 0:00:06]}  Ke5 {[%clk 0:00:11]} 127. Rd1 {[%clk 0:00:06]}  Rf7+ {[%clk 0:00:11]} 128. Ka8 {[%clk 0:00:06]}  Rd7 {[%clk 0:00:10]} 129. Rxd7 {[%clk 0:00:05]} 1-0


[Site "https://www.chess.com"]

[Event "Titled Tuesday Blitz November 22 Late 2022"]
[White "Antonio, Jorge Carlos"]
[Black "Remolar Gallen, Jose"]
[WhiteFideId "113190"]
[BlackFideId "2215187"]
[WhiteElo "2247"]
[BlackElo "2252"]
[Result "1-0"]
[Round "08"]
[TimeControl "180+1"]
[Date "2022.11.23"]
[WhiteClock "0:01:45"]
[BlackClock "0:02:17"]

1. d4 {[%clk 0:03:00]}  Nf6 {[%clk 0:02:57]} 2. Nf3 {[%clk 0:03:00]}  g6 {[%clk 0:02:57]} 3. c4 {[%clk 0:02:56]}  Bg7 {[%clk 0:02:57]} 4. Nc3 {[%clk 0:02:53]}  O-O {[%clk 0:02:56]} 5. e4 {[%clk 0:02:48]}  d6 {[%clk 0:02:56]} 6. Be2 {[%clk 0:02:48]}  e5 {[%clk 0:02:56]} 7. O-O {[%clk 0:02:44]}  Nc6 {[%clk 0:02:56]} 8. d5 {[%clk 0:02:42]}  Ne7 {[%clk 0:02:57]} 9. Ne1 {[%clk 0:02:39]}  Nd7 {[%clk 0:02:57]} 10. Be3 {[%clk 0:02:37]}  f5 {[%clk 0:02:56]} 11. f3 {[%clk 0:02:31]}  f4 {[%clk 0:02:56]} 12. Bf2 {[%clk 0:02:31]}  g5 {[%clk 0:02:57]} 13. Rc1 {[%clk 0:02:26]}  Ng6 {[%clk 0:02:56]} 14. c5 {[%clk 0:02:26]}  Rf7 {[%clk 0:02:55]} 15. cxd6 {[%clk 0:02:26]}  cxd6 {[%clk 0:02:55]} 16. Qc2 {[%clk 0:02:21]}  h5 {[%clk 0:02:40]} 17. Nb5 {[%clk 0:02:19]}  Nf6 {[%clk 0:02:40]} 18. Nc7 {[%clk 0:02:08]}  Rb8 {[%clk 0:02:35]} 19. Bxa7 {[%clk 0:02:04]}  Bd7 {[%clk 0:02:28]} 20. Ne6 {[%clk 0:01:59]}  Qe8 {[%clk 0:02:21]} 21. Bxb8 {[%clk 0:01:54]}  Qxb8 {[%clk 0:02:18]} 22. Qc7 {[%clk 0:01:53]}  Qe8 {[%clk 0:02:17]} 23. Nxg5 {[%clk 0:01:45]} 1-0


[Site "https://www.chess.com"]